bitfinex/quotes_ETHUSD_20250414
["timestamp","ask_amount","ask_price","bid_price","bid_amount"]
[1744654291314,6.07879,1645.1,1644.8,16.61374]
[1744654292196,6.07879,1645.1,1644.8,10.5342]
[1744654292405,6.07903,1645.0,1644.8,10.5342]
[1744654292600,6.07939,1644.9,1644.8,10.5342]
[1744654292799,6.07939,1644.9,1644.8,5.778]
[1744654293000,7.295232,1644.9,1644.8,5.778]
[1744654294394,12.1615,1644.6,1644.5,5.778]
[1744654294721,12.1615,1644.6,1644.5,9.778]
[1744654295736,12.1615,1644.6,1644.5,4.0]
[1744654296730,6.08075,1644.6,1644.5,4.0]
[1744654296892,7.296849,1644.6,1644.3,6.86231]
[1744654297093,13.377499,1644.6,1644.3,6.86231]
[1744654297413,7.296749,1644.6,1644.3,6.86231]
[1744654298523,12.1613,1644.6,1644.3,6.86231]
[1744654298917,12.16132,1644.6,1644.3,6.86231]
[1744654299224,12.16131,1644.6,1644.3,6.86231]
[1744654299423,12.16133,1644.6,1644.3,6.86231]
[1744654299626,6.08065,1644.6,1644.3,12.94381]
[1744654299829,12.16057,1644.7,1644.4,6.08121]
[1744654300063,6.08061,1644.6,1644.3,12.94368]
[1744654300235,6.08061,1644.6,1644.3,6.86218]
[1744654300530,13.452177,1644.7,1644.4,6.08123]
[1744654300717,6.0805,1644.6,1644.3,6.86218]
[1744654301028,6.0805,1644.6,1644.3,0.7807]
[1744654301230,12.16128,1644.6,1644.3,0.7807]
[1744654301438,6.0809,1644.5,1644.3,0.7807]
[1744654301635,13.5065277,1644.6,1644.3,0.7807]
[1744654301837,13.5065277,1644.6,1644.3,6.8623]
[1744654302138,7.4257977,1644.6,1644.3,6.86221]
[1744654302339,13.5064977,1644.6,1644.3,6.86221]
[1744654303339,6.08087,1644.5,1644.3,0.7807]
[1744654304243,7.4257977,1644.6,1644.3,6.8623]
[1744654304437,7.4257977,1644.6,1644.3,13.00461982]
[1744654304642,6.07987,1644.8,1644.5,6.08087]
[1744654304810,7.3558066,1644.9,1644.4,6.08119]
[1744654305135,12.16096,1644.7,1644.4,6.08123]
[1744654305338,6.08056,1644.6,1644.3,0.7807]
[1744654305532,12.16124,1644.6,1644.3,0.7807]
[1744654305731,12.16124,1644.6,1644.3,6.86228]
[1744654305732,12.16123,1644.6,1644.3,6.86228]
[1744654306340,6.08056,1644.6,1644.3,0.7807]
[1744654306542,6.86188,1644.7,1644.2,5.778]
[1744654306845,6.08161,1644.3,1644.2,5.778]
[1744654307420,6.08198,1644.2,1644.1,0.05]
[1744654312348,6.0843,1643.6,1643.4,0.8087]
[1744654312522,15.77198,1644.2,1643.2,6.5817]
[1744654312523,6.08531,1643.3,1643.2,6.5817]
[1744654312724,6.08531,1643.3,1643.2,5.773]
[1744654313245,6.08568,1643.2,1643.0,0.8008]
[1744654313747,6.08568,1643.2,1642.9,0.4009954]
[1744654315017,6.89648,1643.2,1642.9,0.4009954]
[1744654315231,8.194659,1643.2,1642.9,0.4009954]
[1744654315438,8.744659,1643.2,1642.9,0.4009954]
[1744654315649,8.194659,1643.2,1642.9,0.4009954]
[1744654315849,7.383859,1643.2,1642.9,6.4877654]
[1744654316057,7.383859,1643.2,1642.9,0.4009954]
[1744654317958,6.90263,1643.4,1643.0,6.08631]
[1744654318252,6.08523,1643.4,1643.1,0.8368]
[1744654318458,6.14,1643.5,1643.3,6.08516]
[1744654318752,12.22458,1643.5,1643.2,6.08555]
[1744654318953,6.9289,1643.5,1643.1,0.05]
[1744654319259,6.08513,1643.4,1643.1,6.1359]
[1744654319658,6.08513,1643.4,1643.1,0.05]
[1744654319844,13.525921,1643.5,1643.2,6.08567]
[1744654320069,6.14,1643.5,1643.4,6.84854]
[1744654320236,6.14,1643.5,1643.4,0.7636]
[1744654320757,6.9706,1644.1,1643.6,6.08409]
[1744654320931,6.0831,1643.9,1643.6,6.08409]
[1744654321132,0.8306,1644.1,1643.6,11.86004]
[1744654321339,6.91302,1644.1,1643.7,6.08367]
[1744654321545,6.08421,1643.6,1643.4,1.87099]
[1744654321746,6.8358,1644.1,1643.3,5.776]
[1744654321747,6.08469,1643.5,1643.3,5.776]
[1744654321950,6.08494,1643.4,1643.3,5.776]
[1744654323062,6.08469,1643.5,1643.3,5.776]
[1744654323659,6.08494,1643.4,1643.3,5.776]
[1744654325430,7.301585,1643.5,1643.3,5.776]
[1744654325625,6.08421,1643.6,1643.3,11.86126]
[1744654325962,6.08457,1643.5,1643.3,5.776]
[1744654326468,12.16878,1643.6,1643.3,5.776]
[1744654326779,6.08421,1643.6,1643.3,11.86125]
[1744654326927,6.08428,1643.6,1643.3,5.776]
[1744654327126,6.08472,1643.5,1643.3,5.776]
[1744654328343,7.306728,1643.6,1643.3,5.776]
[1744654328659,6.0843,1643.6,1643.3,11.86113]
[1744654328869,6.0843,1643.6,1643.3,17.9463]
[1744654329033,6.14,1643.7,1643.4,0.7714]
[1744654329231,6.14,1643.7,1643.5,6.08443]
[1744654330346,6.14,1643.7,1643.4,12.9411]
[1744654330667,6.14,1643.7,1643.4,14.81281]
[1744654331169,12.16725,1643.8,1643.4,14.81281]
[1744654331379,6.08347,1643.8,1643.5,6.08452]
[1744654331584,6.08384,1643.7,1643.4,14.81277]
[1744654331785,13.03763,1644.0,1643.4,2.64311]
[1744654331786,6.9549,1644.0,1643.4,2.64311]
[1744654331984,6.08347,1643.8,1643.5,12.1688]
[1744654332287,8.60413072,1644.0,1643.4,0.7714]
[1744654332598,6.08335,1643.9,1643.5,6.08446]
[1744654332769,6.08335,1643.9,1643.6,6.08407]
[1744654332976,6.08324,1643.9,1643.5,6.08446]
[1744654333285,6.08324,1643.9,1643.1,0.05]
[1744654333286,6.08568,1643.2,1643.1,0.05]
[1744654333661,9.08568,1643.2,1643.1,0.05]
[1744654333866,9.63568,1643.2,1643.1,0.05]
[1744654334795,10.0908363,1643.2,1643.1,0.05]
[1744654335682,9.08568,1643.2,1643.1,0.05]
[1744654335880,6.08568,1643.2,1643.1,0.05]
[1744654339405,6.83608,1643.2,1643.1,0.05]
[1744654339590,6.08568,1643.2,1643.1,0.05]
[1744654340991,6.08548,1643.3,1643.1,0.05]
[1744654341293,3.86111328,1643.2,1642.9,0.4009954]
[1744654341493,6.08642,1643.0,1642.9,0.4009954]
[1744654341693,0.8135,1643.2,1642.9,0.4009954]
[1744654341863,6.08607,1643.1,1642.9,0.4009954]
[1744654342196,12.2254,1643.3,1642.9,6.4877454]
[1744654342491,12.17186,1643.2,1642.9,0.4009954]
[1744654342658,6.14,1643.3,1643.0,6.08613]
[1744654342859,6.08508,1643.4,1643.2,0.7755]
[1744654343058,12.17021,1643.4,1643.2,0.7755]
[1744654343287,6.08531,1643.3,1643.2,0.7755]
[1744654344797,6.08496,1643.4,1643.2,0.7755]
[1744654345100,6.08531,1643.3,1643.2,0.7755]
[1744654347072,0.7773,1643.5,1643.1,5.772]
[1744654347408,6.08568,1643.2,1643.1,5.772]
[1744654347901,6.08629,1643.1,1642.9,0.4009954]
[1744654348103,6.08642,1643.0,1642.9,6.1739954]
[1744654348978,6.08642,1643.0,1642.9,0.4009954]
[1744654352188,6.08623,1643.1,1642.9,0.4009954]
[1744654352389,6.14,1643.3,1643.0,6.5655]
[1744654352605,12.22542,1643.3,1643.0,13.34856954]
[1744654352769,6.14,1643.3,1643.0,13.34856954]
[1744654352966,6.08568,1643.2,1643.0,7.26214954]
[1744654353166,12.22559,1643.3,1643.0,13.34855954]
[1744654353371,6.08582,1643.2,1643.1,5.773]
[1744654353804,6.84075,1643.6,1643.1,5.773]
[1744654354006,12.17046,1643.4,1643.1,5.773]
[1744654354607,6.08533,1643.3,1643.1,5.773]
[1744654354814,6.08533,1643.3,1643.1,7.03818]
[1744654355135,12.1709,1643.3,1643.1,7.03818]
[1744654355414,6.08568,1643.2,1643.1,5.773]
[1744654355612,12.17015,1643.4,1643.1,5.773]
[1744654355785,6.08543,1643.3,1643.1,5.773]
[1744654356185,12.17092,1643.3,1643.1,5.773]
[1744654356504,6.08543,1643.3,1643.1,5.773]
[1744654356692,6.08543,1643.3,1643.1,7.038179]
[1744654356897,12.17013,1643.4,1643.1,7.038179]
[1744654357097,6.08533,1643.3,1643.1,7.038179]
[1744654359019,6.08642,1643.0,1642.9,0.4009954]
[1744654359526,12.17246,1643.1,1642.9,0.4009954]
[1744654359817,6.08623,1643.1,1642.9,0.4009954]
[1744654360229,6.08642,1643.0,1642.9,0.4009954]
[1744654363100,6.87311,1643.2,1642.9,0.4009954]
[1744654363296,6.08616,1643.1,1642.9,0.4009954]
[1744654363492,12.17257,1643.1,1642.9,0.4009954]
[1744654365038,6.08642,1643.0,1642.9,0.4009954]
[1744654367635,7.303417,1643.1,1642.9,0.4009954]
[1744654367806,0.7955,1643.3,1642.9,7.2587954]
[1744654368003,6.08578,1643.2,1642.9,7.2587954]
[1744654368416,12.17165,1643.2,1642.9,7.2587954]
[1744654368638,6.08642,1643.0,1642.9,1.1720954]
[1744654368954,12.17163,1643.2,1642.9,1.1720954]
[1744654369937,6.08629,1643.1,1642.9,1.1720954]
[1744654370237,6.08621,1643.1,1642.9,1.1720954]
[1744654370566,6.08621,1643.1,1643.0,5.77]
[1744654371868,6.08642,1643.0,1642.9,0.4009954]
[1744654372157,6.85392,1643.0,1642.9,0.4009954]
[1744654376672,6.08642,1643.0,1642.9,0.4009954]
[1744654376867,7.357195,1643.1,1642.9,0.4009954]
[1744654377153,18.31249,1643.1,1642.9,0.4009954]
[1744654377859,6.08642,1643.0,1642.9,0.4009954]
[1744654378253,12.17262,1643.1,1642.9,0.4009954]
[1744654378456,6.08642,1643.0,1642.9,0.4009954]
[1744654380091,8.092492,1643.1,1642.9,0.3866993]
[1744654380092,7.303492,1643.1,1642.9,0.3866993]
[1744654380297,6.90692,1643.0,1642.9,0.3866993]
[1744654380801,6.08642,1643.0,1642.9,0.3866993]
[1744654381352,12.22623,1643.1,1642.9,0.3866993]
[1744654381586,6.84136,1643.4,1643.0,6.08635]
[1744654381792,6.08467,1643.5,1643.2,6.84739]
[1744654382002,12.16954,1643.5,1643.3,5.77]
[1744654382159,4.0866388,1643.6,1643.3,5.77]
[1744654382358,4.0866388,1643.6,1643.4,6.08466]
[1744654382664,4.0866388,1643.6,1643.4,0.7604]
[1744654382884,10.1710888,1643.6,1643.4,0.7604]
[1744654383058,10.1710088,1643.6,1643.4,0.7604]
[1744654383257,16.2553888,1643.6,1643.4,0.7604]
[1744654383471,4.0866388,1643.6,1643.4,0.7604]
[1744654383854,4.0866388,1643.6,1643.5,6.08457]
[1744654384285,4.0866388,1643.6,1643.5,9.88597]
[1744654385371,6.08313,1643.9,1643.5,15.97054]
[1744654385799,6.08417,1643.7,1643.5,6.5704]
[1744654386003,6.08311,1643.9,1643.5,6.5704]
[1744654386158,6.08278,1644.0,1643.6,6.08403]
[1744654386358,12.16567,1644.0,1643.6,6.08403]
[1744654386658,12.16567,1644.0,1643.6,12.16809]
[1744654387059,6.08278,1644.0,1643.7,6.08379]
[1744654387403,6.08243,1644.1,1643.7,6.14455542]
[1744654387557,6.08243,1644.1,1643.8,7.46238554]
[1744654387761,12.16432,1644.2,1643.9,5.769]
[1744654387958,6.08237,1644.1,1643.9,5.769]
[1744654388192,12.16432,1644.2,1643.9,5.769]
[1744654388573,12.16343,1644.3,1643.9,17.93505]
[1744654388895,6.08202,1644.2,1643.9,13.78337055]
[1744654389661,12.16361,1644.3,1643.9,13.78337055]
[1744654389987,6.14,1644.5,1644.0,6.08259]
[1744654390188,6.08159,1644.4,1644.0,0.7645]
[1744654390356,6.08162,1644.3,1644.0,7.69371006]
[1744654391515,6.08212,1644.2,1644.0,1.61099006]
[1744654391672,6.0809,1644.5,1643.7,9.84821]
[1744654391878,6.08309,1643.9,1643.8,9.768]
[1744654392517,6.08275,1644.0,1643.8,9.768]
[1744654392900,6.08241,1644.1,1643.8,9.768]
[1744654393200,6.08237,1644.1,1643.8,18.121314]
[1744654393401,12.22131,1644.4,1644.1,6.08208]
[1744654393614,6.08131,1644.4,1644.1,6.08208]
[1744654393910,12.16207,1644.5,1644.2,11.84886]
[1744654394138,6.08161,1644.3,1644.2,5.767]
[1744654394413,6.08142,1644.4,1644.2,5.767]
[1744654394577,6.08062,1644.6,1644.2,11.84881]
[1744654394778,12.16138,1644.6,1644.2,19.115551]
[1744654395237,13.3543696,1644.9,1644.5,6.0807]
[1744654395412,0.8181,1644.9,1644.6,5.764]
[1744654395617,6.0801,1644.8,1644.6,5.764]
[1744654395812,6.08013,1644.7,1644.6,5.764]
[1744654396014,7.904146,1644.7,1644.6,5.764]
[1744654396218,6.08013,1644.7,1644.6,5.764]
[1744654396417,6.08096,1644.5,1644.3,0.7692]
[1744654396580,6.08096,1644.5,1644.4,5.764]
[1744654396977,6.08056,1644.6,1644.3,0.7692]
[1744654397202,12.16052,1644.7,1644.3,12.93203]
[1744654397408,6.08061,1644.6,1644.4,5.763]
[1744654397798,12.16142,1644.6,1644.4,5.763]
[1744654398127,6.081,1644.5,1644.3,0.7692]
[1744654398308,12.2199,1644.8,1644.1,9.5766]
[1744654398309,6.08124,1644.4,1644.1,9.5766]
[1744654398508,6.0817,1644.3,1644.1,6.5766]
[1744654398714,6.08198,1644.2,1644.1,6.5766]
[1744654398884,12.16348,1644.3,1644.1,5.763]
[1744654399100,6.08198,1644.2,1644.1,5.763]
[1744654402828,6.08198,1644.2,1643.9,0.8136]
[1744654403028,1.216348,1644.3,1643.7,6.5407]
[1744654403029,6.08327,1643.9,1643.7,6.5407]
[1744654403197,6.08327,1643.9,1643.7,5.763]
[1744654403636,6.08346,1643.8,1643.7,5.763]
[1744654406514,12.16654,1643.9,1643.7,5.763]
[1744654406721,6.08346,1643.8,1643.7,5.763]
[1744654408445,12.16649,1643.9,1643.7,5.763]
[1744654408603,6.08323,1643.9,1643.7,5.763]
[1744654409340,6.08346,1643.8,1643.7,5.763]
[1744654411650,12.1665,1643.9,1643.7,5.763]
[1744654411805,12.16649,1643.9,1643.7,5.763]
[1744654412310,6.08346,1643.8,1643.7,5.763]
[1744654416647,7.300129,1643.8,1643.7,5.763]
[1744654417016,6.14,1644.0,1643.7,5.763]
[1744654417213,18.30592,1644.0,1643.7,11.84672]
[1744654417526,6.0831,1643.9,1643.7,5.763]
[1744654418055,6.08346,1643.8,1643.7,5.763]
[1744654418943,6.83456,1643.8,1643.7,5.763]
[1744654419141,8.734662,1643.8,1643.7,5.763]
[1744654422251,7.983562,1643.8,1643.7,5.763]
[1744654422826,6.08346,1643.8,1643.7,5.763]
[1744654430659,6.91356,1643.8,1643.7,5.763]
[1744654432970,6.08463,1643.5,1643.3,0.7678]
[1744654433471,6.08463,1643.5,1643.4,5.762]
[1744654433767,6.08463,1643.5,1643.3,0.7678]
[1744654433956,6.08463,1643.5,1643.4,5.762]
[1744654436848,12.16876,1643.6,1643.4,5.762]
[1744654437051,6.08438,1643.6,1643.4,5.762]
[1744654437381,12.16812,1643.7,1643.4,13.108338]
[1744654437667,12.16872,1643.6,1643.4,5.762]
[1744654438269,6.08457,1643.5,1643.4,5.762]
[1744654441237,6.08424,1643.6,1643.4,5.762]
[1744654441451,12.16858,1643.6,1643.4,5.762]
[1744654441770,6.08424,1643.6,1643.4,5.762]
[1744654441944,12.1686,1643.6,1643.4,5.762]
[1744654442147,6.86124,1643.9,1643.4,5.762]
[1744654442148,3.7781,1643.9,1643.4,7.02351]
[1744654442346,6.08396,1643.7,1643.4,7.02351]
[1744654442675,12.16868,1643.6,1643.4,7.02351]
[1744654443576,6.0843,1643.6,1643.5,5.762]
[1744654445494,6.08364,1643.8,1643.5,5.762]
[1744654445652,6.08412,1643.7,1643.5,5.762]
[1744654445858,6.0842,1643.6,1643.5,5.762]
[1744654447102,6.8374,1643.6,1643.5,5.762]
[1744654447398,6.08568,1643.2,1643.1,53.182]
[1744654449950,6.08605,1643.1,1643.0,0.3866993]
[1744654450153,13.56475,1643.1,1643.0,9.3e-06]
[1744654450385,16.56475,1643.1,1643.0,9.3e-06]
[1744654450659,17.02189077,1643.1,1643.0,9.3e-06]
[1744654450884,19.62712859,1643.1,1643.0,9.3e-06]
[1744654451372,6.14,1643.1,1643.0,9.3e-06]
[1744654451568,6.08579,1643.2,1643.0,9.3e-06]
[1744654451904,6.9287,1643.7,1643.3,6.08528]
[1744654452192,6.08475,1643.5,1643.1,18.72549]
[1744654452392,6.08507,1643.4,1643.1,6.5538]
[1744654452599,6.08424,1643.6,1643.1,6.5538]
[1744654452770,6.08525,1643.4,1643.1,6.5538]
[1744654453096,12.17052,1643.4,1643.1,6.5538]
[1744654453288,6.0854,1643.3,1643.1,6.5538]
[1744654453483,6.0854,1643.3,1643.0,9.3e-06]
[1744654453681,6.08605,1643.1,1643.0,9.3e-06]
[1744654454086,6.08582,1643.2,1643.0,9.3e-06]
[1744654454490,6.08539,1643.3,1643.0,9.3e-06]
[1744654454859,6.08572,1643.2,1643.0,9.3e-06]
[1744654455799,12.93062,1643.4,1643.0,9.3e-06]
[1744654456094,6.08544,1643.3,1643.0,9.3e-06]
[1744654456394,6.08544,1643.3,1643.0,6.0864093]
[1744654456627,6.84552,1643.4,1643.0,6.0864093]
[1744654456809,6.08458,1643.5,1643.1,6.08585]
[1744654457011,6.85221,1643.6,1643.1,6.08585]
[1744654457193,6.08473,1643.5,1643.1,6.08585]
[1744654457396,12.16956,1643.5,1643.1,6.08585]
[1744654458299,12.16956,1643.5,1643.0,6.0864093]
[1744654458300,6.08497,1643.4,1643.0,6.0864093]
[1744654458677,6.08497,1643.4,1643.0,12.1727093]
[1744654458879,6.08497,1643.4,1643.0,12.1726093]
[1744654459080,12.16947,1643.5,1643.1,6.08604]
[1744654459299,6.08473,1643.5,1643.2,5.758]
[1744654460002,6.08426,1643.6,1643.3,6.08529]
[1744654460164,12.22392,1643.7,1643.3,12.17033]
[1744654460497,6.08392,1643.7,1643.3,6.08515]
[1744654460798,6.08436,1643.6,1643.2,12.60087]
[1744654460999,6.08436,1643.6,1643.3,1.260087]
[1744654461303,6.08436,1643.6,1643.2,12.60083]
[1744654461688,6.08436,1643.6,1643.3,6.0853]
[1744654462830,0.791,1643.8,1643.2,6.5153]
[1744654463105,6.0847,1643.5,1643.2,6.5153]
[1744654463699,12.16955,1643.5,1643.2,6.5153]
[1744654464002,6.0847,1643.5,1643.2,6.5153]
[1744654464180,6.0847,1643.5,1643.2,12.60097]
[1744654464594,6.08425,1643.6,1643.2,18.68649]
[1744654464906,6.08425,1643.6,1643.3,6.0852]
[1744654465103,6.0839,1643.7,1643.3,6.08516]
[1744654465280,6.08358,1643.8,1643.3,0.789]
[1744654465483,6.08358,1643.8,1643.4,6.08469]
[1744654465679,12.22318,1643.9,1643.5,6.08455]
[1744654465892,6.08314,1643.9,1643.6,12.63506]
[1744654466306,12.22272,1644.0,1643.6,6.551]
[1744654466491,12.22272,1644.0,1643.7,6.08374]
[1744654466805,6.08343,1643.9,1643.6,6.551]
[1744654466982,6.08605,1643.1,1643.0,9.3e-06]
[1744654467307,9.32046106,1643.1,1643.0,4.0000093]
[1744654467604,11.1555719,1643.1,1643.0,9.3e-06]
[1744654467801,7.92116084,1643.1,1643.0,9.3e-06]
[1744654468572,6.08605,1643.1,1643.0,9.3e-06]
[1744654469277,6.08584,1643.2,1643.0,9.3e-06]
[1744654469997,6.08605,1643.1,1643.0,9.3e-06]
[1744654471776,6.14,1643.3,1643.0,9.3e-06]
[1744654471978,12.17194,1643.2,1643.0,9.3e-06]
[1744654472177,6.08605,1643.1,1643.0,9.3e-06]
[1744654472382,6.08597,1643.2,1643.0,9.3e-06]
[1744654472599,12.22534,1643.3,1643.0,9.3e-06]
[1744654473000,12.22534,1643.3,1643.0,6.0864193]
[1744654473204,6.08503,1643.4,1643.1,11.84492]
[1744654473404,6.08494,1643.4,1643.1,11.845]
[1744654474123,12.17005,1643.4,1643.1,11.845]
[1744654474913,6.08494,1643.4,1643.1,11.84492]
[1744654475077,6.08435,1643.6,1643.3,6.08516]
[1744654475281,6.08481,1643.5,1643.2,6.84887]
[1744654475512,12.16962,1643.5,1643.2,6.84887]
[1744654475712,12.16887,1643.6,1643.2,2.632688]
[1744654475912,6.08451,1643.6,1643.2,6.84884]
[1744654476119,6.08459,1643.5,1643.2,6.84884]
[1744654476303,6.08451,1643.6,1643.3,6.08531]
[1744654476304,6.08437,1643.6,1643.3,6.08531]
[1744654476490,6.08393,1643.7,1643.4,6.08491]
[1744654476696,0.608343,1643.9,1643.5,6.5722]
[1744654477018,0.8263,1644.2,1643.8,6.89761]
[1744654477192,6.0828,1644.0,1643.8,0.8142]
[1744654477386,12.16587,1644.0,1643.9,5.758]
[1744654478219,0.8278,1643.5,1643.0,9.3e-06]
[1744654478421,9.08604,1643.2,1643.0,9.3e-06]
[1744654478585,6.63605,1643.1,1643.0,9.3e-06]
[1744654478786,12.77605,1643.1,1643.0,9.3e-06]
[1744654479001,15.045039,1643.1,1643.0,9.3e-06]
[1744654479198,14.495039,1643.1,1643.0,9.3e-06]
[1744654480215,12.22605,1643.1,1643.0,9.3e-06]
[1744654481422,6.08605,1643.1,1643.0,9.3e-06]
[1744654485095,7.42115,1643.1,1643.0,9.3e-06]
[1744654485327,19.60924431,1643.1,1643.0,9.3e-06]
[1744654485530,16.56115,1643.1,1643.0,9.3e-06]
[1744654485735,18.82585,1643.1,1643.0,9.3e-06]
[1744654486124,15.82585,1643.1,1643.0,9.3e-06]
[1744654488915,15.27585,1643.1,1643.0,9.3e-06]
[1744654491503,14.49075,1643.1,1643.0,9.3e-06]
[1744654491714,6.08605,1643.1,1643.0,9.3e-06]
[1744654492409,12.22537,1643.3,1643.0,6.5345093]
[1744654492626,6.08575,1643.2,1643.0,6.5345093]
[1744654492829,12.17085,1643.3,1643.0,12.6207893]
[1744654493206,12.22502,1643.4,1643.0,13.88286823]
[1744654493405,6.08533,1643.3,1643.0,13.88281823]
[1744654493809,12.17091,1643.3,1643.0,13.88281823]
[1744654494001,6.08533,1643.3,1643.0,13.88281823]
[1744654494501,12.2251,1643.4,1643.0,7.79658823]
[1744654494708,6.08605,1643.1,1643.0,6.5345093]
[1744654494906,6.08605,1643.1,1643.0,5.7550093]
[1744654497548,6.08605,1643.1,1643.0,9.3e-06]
[1744654497908,12.1717,1643.2,1643.0,9.3e-06]
[1744654498404,6.08584,1643.2,1643.0,9.3e-06]
[1744654498707,6.08581,1643.2,1643.0,9.3e-06]
[1744654498903,6.08605,1643.1,1643.0,9.3e-06]
[1744654499237,6.08581,1643.2,1643.0,9.3e-06]
[1744654499749,6.08581,1643.2,1643.1,0.7955]
[1744654499956,12.17092,1643.3,1643.1,0.7955]
[1744654500254,6.9205,1643.6,1643.1,6.5505]
[1744654500487,6.08518,1643.4,1643.1,6.5505]
[1744654500744,14.305208,1643.6,1643.1,6.5505]
[1744654500745,6.08568,1643.2,1643.1,6.5505]
[1744654501242,12.17098,1643.3,1643.1,6.5505]
[1744654501642,6.08504,1643.4,1643.1,12.63643]
[1744654501940,12.17021,1643.4,1643.1,12.63647]
[1744654502258,8.220958,1643.6,1643.1,6.5505]
[1744654502259,6.08542,1643.3,1643.1,6.5505]
[1744654502740,0.55,1642.4,1642.1,6.43516297]
[1744654503042,12.17695,1642.5,1642.2,4.0]
[1744654503234,6.08902,1642.3,1642.2,4.0]
[1744654503608,6.08902,1642.4,1642.2,4.0]
[1744654503815,12.17681,1642.5,1642.1,6.13959]
[1744654504321,6.08871,1642.4,1642.2,5.755]
[1744654505123,6.08871,1642.4,1642.3,5.755]
[1744654506459,6.08836,1642.5,1642.3,5.755]
[1744654506744,6.08626,1643.1,1642.3,7.1115]
[1744654506961,0.7928,1643.0,1642.8,6.08698]
[1744654507265,6.08584,1643.2,1643.0,0.779]
[1744654507409,6.08525,1643.4,1643.0,0.779]
[1744654507613,12.17189,1643.2,1643.0,0.779]
[1744654507814,6.08605,1643.1,1642.9,5.755]
[1744654508032,6.08642,1643.0,1642.9,5.755]
[1744654508854,6.08605,1643.1,1642.9,5.755]
[1744654509150,6.08642,1643.0,1642.9,5.755]
[1744654511322,12.1716,1643.2,1642.9,5.755]
[1744654511526,6.08577,1643.2,1643.0,0.7841]
[1744654511853,12.22536,1643.3,1643.0,12.95672]
[1744654512151,6.773985,1643.4,1643.1,6.08601]
[1744654512152,6.08503,1643.4,1643.1,6.08601]
[1744654512321,6.08503,1643.4,1643.1,6.08594]
[1744654512648,6.08465,1643.5,1643.1,13.467498]
[1744654512851,6.08495,1643.4,1643.1,7.381558]
[1744654513668,6.08544,1643.3,1643.1,1.295638]
[1744654513955,6.08532,1643.3,1643.1,1.295638]
[1744654514155,6.085,1643.4,1643.1,7.381498]
[1744654514355,12.17016,1643.4,1643.1,7.381498]
[1744654514962,6.08531,1643.3,1643.1,1.295638]
[1744654515668,6.08642,1643.0,1642.9,5.755]
[1744654515828,6.08679,1642.9,1642.8,0.8022]
[1744654516026,6.9017,1643.3,1642.8,5.755]
[1744654516231,6.08611,1643.1,1642.8,11.84206]
[1744654516439,6.08644,1643.0,1642.8,5.755]
[1744654516655,12.17166,1643.2,1642.9,6.84885]
[1744654516856,6.08609,1643.1,1642.9,0.7621]
[1744654517529,6.08642,1643.0,1642.9,0.7621]
[1744654517852,6.08609,1643.1,1642.9,0.7621]
[1744654518258,12.17239,1643.1,1642.9,0.7621]
[1744654518624,12.17246,1643.1,1642.9,0.7621]
[1744654518826,6.08642,1643.0,1642.9,0.7621]
[1744654519545,6.08642,1643.0,1642.9,6.5151]
[1744654519934,6.08609,1643.1,1642.9,6.5151]
[1744654520135,12.17231,1643.1,1642.9,6.5151]
[1744654520474,13.5726576,1643.1,1642.9,6.5151]
[1744654520647,6.08642,1643.0,1642.9,6.5151]
[1744654520841,6.08642,1643.0,1642.9,5.753]
[1744654522060,7.4864376,1643.1,1642.9,5.753]
[1744654522665,13.5728376,1643.1,1642.9,5.753]
[1744654522869,7.4864376,1643.1,1642.9,5.753]
[1744654523076,13.5726676,1643.1,1642.9,5.753]
[1744654523227,7.4864376,1643.1,1642.9,5.753]
[1744654523427,13.5726776,1643.1,1642.9,5.753]
[1744654524556,13.5726576,1643.1,1642.9,5.753]
[1744654524727,13.5726176,1643.1,1642.9,5.753]
[1744654524929,6.08642,1643.0,1642.9,5.753]
[1744654525133,7.44370576,1643.0,1642.9,5.753]
[1744654525649,1.35728576,1643.0,1642.9,5.753]
[1744654525830,6.08609,1643.1,1642.9,5.753]
[1744654526457,6.08609,1643.1,1642.8,6.08704]
[1744654526759,6.08609,1643.1,1642.9,5.753]
[1744654527159,6.08642,1643.0,1642.9,5.753]
[1744654527936,6.08642,1643.0,1642.7,6.88641]
[1744654528137,6.08642,1643.0,1642.8,5.753]
[1744654528538,6.08585,1643.2,1642.8,11.84004]
[1744654528735,6.08608,1643.1,1642.8,17.92711]
[1744654528954,6.08585,1643.2,1642.9,6.08677]
[1744654529159,7.916955,1643.2,1642.9,6.08677]
[1744654529466,6.08583,1643.2,1642.9,6.0867]
[1744654529966,6.08583,1643.2,1642.8,17.92714]
[1744654530164,6.08606,1643.1,1642.8,11.84006]
[1744654531473,6.08583,1643.2,1642.9,6.08679]
[1744654531675,6.14,1643.3,1642.1,0.05]
[1744654531676,0.608583,1643.1,1642.1,0.05]
[1744654531968,6.08918,1642.3,1642.1,0.05]
[1744654532168,12.17836,1642.3,1642.1,0.05]
[1744654532356,6.08939,1642.2,1642.1,0.05]
[1744654532872,3.7937,1642.4,1641.9,6.0905]
[1744654533075,12.17845,1642.3,1641.8,12.946]
[1744654533376,6.08909,1642.3,1642.0,5.753]
[1744654533744,6.88241,1642.4,1642.0,5.753]
[1744654533947,6.08908,1642.3,1642.0,5.753]
[1744654534145,12.97126,1642.4,1642.0,13.636375]
[1744654534576,6.08905,1642.3,1642.0,7.546375]
[1744654534768,6.08905,1642.3,1642.0,5.753]
[1744654535163,6.08976,1642.1,1642.0,5.753]